fUST/lending_fUST_20240809
["ID","MTS","AMOUNT","RATE_DAILY","PERIOD"]
[334535381,1723175450318,-504.87484438,0.00027397,7]
[334535383,1723175450327,-500.0,0.00027397,7]
[334535385,1723175450337,-500.0,0.00027397,7]
[334535387,1723175450347,-509.41383,0.00027397,7]
[334535389,1723175450356,-646.07888611,0.00027397,7]
[334535391,1723175450365,-500.0,0.00027397,7]
[334535393,1723175450375,-505.19639206,0.00027397,7]
[334535394,1723175450384,-500.0,0.00027397,7]
[334535396,1723175450393,-502.50116967,0.00027397,7]
[334535398,1723175450403,-505.75771226,0.00027397,7]
[334535400,1723175450413,-501.6350984,0.00027397,7]
[334535402,1723175450422,-500.0,0.00027397,7]
[334535404,1723175450432,-501.66092667,0.00027397,7]
[334535406,1723175450441,-505.22737451,0.00027397,7]
[334535408,1723175450451,-505.02754684,0.00027397,7]
[334535410,1723175450461,-505.08188763,0.00027397,7]
[334535412,1723175450470,-501.70243563,0.00027397,7]
[334535414,1723175450479,-503.96984952,0.00027397,7]
[334535416,1723175450489,-503.00001452,0.00027397,7]
[334535418,1723175450499,-502.56730305,0.00027397,7]
[334535420,1723175450508,-504.65345115,0.00027397,7]
[334535422,1723175450517,-505.73070899,0.00027397,7]
[334535424,1723175450526,-502.7216176,0.00027397,7]
[334535426,1723175450536,-429.93071138,0.00027397,7]
[334535428,1723175450545,-501.07225668,0.00027397,5]
[334535430,1723175450554,-500.0,0.00027397,7]
[334535432,1723175450565,-500.0,0.00027397,7]
[334535434,1723175450576,-500.0,0.00027397,7]
[334535436,1723175450585,-738.31,0.00027397,7]
[334535438,1723175450596,-500.15505334,0.00027397,7]
[334535441,1723175450608,-500.0,0.00027397,7]
[334535443,1723175450618,-500.0,0.00027397,7]
[334535445,1723175450628,-501.58370241,0.00027397,7]
[334535447,1723175450640,-500.0,0.00027397,7]
[334535449,1723175450650,-503.07080594,0.00027397,7]
[334535452,1723175450661,-517.73304598,0.00027397,7]
[334535453,1723175450671,-500.0,0.00027397,7]
[334535455,1723175450680,-500.0,0.00027397,7]
[334535458,1723175450690,-500.0,0.00027397,7]
[334535460,1723175450700,-500.0,0.00027397,7]
[334535462,1723175450709,-500.0,0.00027397,7]
[334535464,1723175450718,-500.0,0.00027397,7]
[334535465,1723175450727,-500.0,0.00027397,7]
[334535467,1723175450737,-501.89585389,0.00027397,7]
[334535470,1723175450746,-501.45752607,0.00027397,7]
[334535472,1723175450758,-500.0,0.00027397,7]
[334535474,1723175450768,-500.0,0.00027397,7]
[334535475,1723175450776,-500.0,0.00027397,7]
[334535477,1723175450786,-500.86190681,0.00027397,7]
[334535479,1723175450795,-500.0,0.00027397,7]
[334535481,1723175450804,-503.21576415,0.00027397,7]
[334535484,1723175450815,-506.70257291,0.00027397,7]
[334535486,1723175450824,-503.11790601,0.00027397,7]
[334535487,1723175450834,-500.0,0.00027397,7]
[334535488,1723175450847,-500.0,0.00027397,7]
[334535489,1723175450856,-500.0,0.00027397,7]
[334535490,1723175450866,-500.0,0.00027397,7]
[334535492,1723175450875,-503.15801424,0.00027397,7]
[334535494,1723175450885,-500.0,0.00027397,7]
[334535496,1723175450894,-503.46447349,0.00027397,7]
[334535498,1723175450904,-500.0,0.00027397,7]
[334535500,1723175450915,-500.0,0.00027397,7]
[334535502,1723175450925,-502.38889473,0.00027397,7]
[334535503,1723175450935,-500.0,0.00027397,7]
[334535506,1723175450945,-500.0,0.00027397,7]
[334535508,1723175450954,-500.0,0.00027397,7]
[334535510,1723175450964,-718.76,0.00027397,7]
[334535512,1723175450973,-500.0,0.00027397,7]
[334535513,1723175450983,-500.0,0.00027397,7]
[334535515,1723175450993,-500.0,0.00027397,2]
[334535517,1723175451002,-916.09,0.00027397,7]
[334535519,1723175451011,-640.33462914,0.00027397,7]
[334535521,1723175451021,-503.748874,0.00027397,7]
[334535523,1723175451030,-510.66453993,0.00027397,7]
[334535525,1723175451040,-500.0,0.00027397,7]
[334535527,1723175451049,-531.59,0.00027397,7]
[334535529,1723175451058,-503.59885118,0.00027397,7]
[334535531,1723175451067,-504.03504906,0.00027397,7]
[334535533,1723175451076,-500.0,0.00027397,7]
[334535536,1723175451086,-500.0,0.00027397,7]
[334535538,1723175451095,-500.0,0.00027397,7]
[334535540,1723175451105,-504.81840076,0.00027397,7]
[334535542,1723175451114,-500.0,0.00027397,7]
[334535544,1723175451123,-506.73271009,0.00027397,7]
[334535546,1723175451132,-500.0,0.00027397,7]
[334535548,1723175451141,-601.47,0.00027397,7]
[334535550,1723175451150,-500.0,0.00027397,7]
[334535552,1723175451159,-504.06408991,0.00027397,7]
[334535554,1723175451168,-504.87536699,0.00027397,7]
[334535556,1723175451178,-500.0,0.00027397,7]
[334535558,1723175451187,-512.86632579,0.00027397,7]
[334535560,1723175451197,-536.48,0.00027397,7]
[334535561,1723175451206,-404.23839521,0.00027397,7]
[334535563,1723175451215,-500.0,0.00027397,7]
[334535565,1723175451225,-506.74868527,0.00027397,7]
[334535567,1723175451234,-500.0,0.00027397,7]
[334535569,1723175451243,-504.05103996,0.00027397,7]
[334535571,1723175451254,-500.0,0.00027397,7]
[334535573,1723175451263,-500.0,0.00027397,7]
[334535575,1723175451272,-500.0,0.00027397,7]
[334535577,1723175451282,-247.299032,0.00027397,7]
[334535579,1723175451292,-247.299032,0.00027397,7]
[334535581,1723175451302,-529.6297699,0.00027397,7]
[334535583,1723175451311,-500.0,0.00027397,7]
[334535585,1723175451321,-247.299032,0.00027397,7]
[334535587,1723175451330,-247.299032,0.00027397,7]
[334535589,1723175451340,-503.73910756,0.00027397,7]
[334535591,1723175451349,-506.24485707,0.00027397,7]
[334535593,1723175451358,-502.23171803,0.00027397,7]
[334535595,1723175451368,-500.0,0.00027397,7]
[334535597,1723175451377,-1190.14768425,0.00027397,2]
[334535599,1723175451387,-503.51737208,0.00027397,7]
[334535601,1723175451396,-506.89642407,0.00027397,7]
[334535603,1723175451406,-503.27403646,0.00027397,7]
[334535605,1723175451415,-500.0,0.00027397,7]
[334535607,1723175451425,-242.60364154,0.00027397,7]
[334535609,1723175451434,-503.14794682,0.00027397,7]
[334535611,1723175451443,-500.0,0.00027397,7]
[334535613,1723175451452,-500.0,0.00027397,7]
[334535615,1723175451461,-278.310743,0.00027397,7]
[334535617,1723175451471,-339.49360579,0.00027397,7]
[334535619,1723175451481,-500.0,0.00027397,7]
[334535621,1723175451490,-500.0,0.00027397,7]
[334535623,1723175451499,-500.0,0.00027397,7]
[334535625,1723175451509,-506.28902099,0.00027397,7]
[334535627,1723175451518,-521.46,0.00027397,7]
[334535629,1723175451528,-819.55,0.00027397,7]
[334535631,1723175451538,-503.56290974,0.00027397,7]
[334535633,1723175451548,-500.0,0.00027397,7]
[334535635,1723175451559,-596.88,0.00027397,7]
[334535637,1723175451568,-889.47,0.00027397,7]
[334535639,1723175451577,-503.56423679,0.00027397,7]
[334535641,1723175451587,-501.12309305,0.00027397,7]
[334535643,1723175451596,-500.0,0.00027397,7]
[334535645,1723175451605,-503.42778909,0.00027397,7]
[334535647,1723175451614,-151.0,0.00027397,7]
[334535649,1723175451624,-151.0,0.00027397,7]
[334535651,1723175451633,-500.0,0.00027397,7]
[334535653,1723175451643,-500.0,0.00027397,7]
[334535655,1723175451651,-507.87050672,0.00027397,7]
[334535657,1723175451661,-500.0,0.00027397,7]
[334535659,1723175451670,-500.0,0.00027397,7]
[334535661,1723175451679,-500.0,0.00027397,7]
[334535663,1723175451688,-500.0,0.00027397,7]
[334535665,1723175451699,-500.0,0.00027397,7]
[334535667,1723175451709,-500.0,0.00027397,7]
[334535669,1723175451719,-500.0,0.00027397,7]
[334535671,1723175451729,-500.0,0.00027397,7]
[334535674,1723175451739,-179.03262112,0.00027397,7]
[334535676,1723175451748,-500.0,0.00027397,7]
[334535677,1723175451759,-500.0,0.00027397,7]
[334535679,1723175451769,-500.0,0.00027397,7]
[334535681,1723175451778,-500.0,0.00027397,7]
[334535684,1723175451788,-500.0,0.00027397,7]
[334535685,1723175451797,-500.0,0.00027397,7]
[334535688,1723175451807,-841.12,0.00027397,7]
[334535690,1723175451817,-500.0,0.00027397,7]
[334535692,1723175451827,-500.0,0.00027397,7]
[334535694,1723175451839,-500.0,0.00027397,7]
[334535696,1723175451850,-1028.46,0.00027397,7]
[334535698,1723175451859,-500.0,0.00027397,7]
[334535699,1723175451869,-686.34,0.00027397,7]
[334535701,1723175451879,-500.0,0.00027397,7]
[334535703,1723175451889,-1139.48,0.00027397,7]
[334535705,1723175451899,-639.21,0.00027397,7]
[334535707,1723175451908,-151.0,0.00027397,7]
[334535710,1723175451919,-500.0,0.00027397,7]
[334535712,1723175451929,-500.0,0.00027397,7]
[334535714,1723175451938,-500.0,0.00027397,7]
[334535716,1723175451949,-500.0,0.00027397,7]
[334535718,1723175451959,-2809.53,0.00027397,7]
[334535720,1723175451968,-500.0,0.00027397,7]
[334535722,1723175451977,-500.0,0.00027397,7]
[334535725,1723175451994,-500.0,0.00027397,7]
[334535727,1723175452008,-500.0,0.00027397,7]
[334535729,1723175452018,-500.0,0.00027397,7]
[334535731,1723175452028,-558.98,0.00027397,7]
[334535733,1723175452038,-673.98,0.00027397,7]
[334535735,1723175452048,-500.0,0.00027397,7]
[334535737,1723175452058,-500.0,0.00027397,7]
[334535739,1723175452068,-610.10532554,0.00027397,7]
[334535741,1723175452077,-151.0,0.00027397,7]
[334535743,1723175452087,-241.881658,0.00027397,7]
[334535745,1723175452097,-504.09366998,0.00027397,7]
[334535748,1723175452109,-500.0,0.00027397,7]
[334535750,1723175452120,-804.0,0.00027397,7]
[334535752,1723175452130,-500.0,0.00027397,7]
[334535754,1723175452139,-1166.87,0.00027397,7]
[334535756,1723175452149,-457.90424777,0.00027397,7]
[334535758,1723175452159,-500.0,0.00027397,7]
[334535760,1723175452169,-500.0,0.00027397,7]
[334535762,1723175452179,-500.0,0.00027397,7]
[334535765,1723175452188,-500.0,0.00027397,7]
[334535767,1723175452199,-500.0,0.00027397,7]
[334535769,1723175452208,-663.461342,0.00027397,7]
[334535771,1723175452218,-663.461342,0.00027397,7]
[334535773,1723175452228,-663.461342,0.00027397,7]
[334535775,1723175452238,-663.461333,0.00027397,7]
[334535777,1723175452248,-500.0,0.00027397,7]
[334535779,1723175452259,-731.44,0.00027397,7]
[334535781,1723175452269,-500.0,0.00027397,7]
[334535783,1723175452279,-500.0,0.00027397,7]
[334535785,1723175452288,-500.0,0.00027397,7]
[334535787,1723175452298,-329.4653978,0.00027397,7]
[334535789,1723175452308,-1343.08,0.00027397,7]
[334535791,1723175452318,-500.0,0.00027397,7]
[334535793,1723175452328,-500.0,0.00027397,7]
[334535795,1723175452338,-522.07,0.00027397,7]
[334535797,1723175452347,-501.49986388,0.00027397,7]
[334535799,1723175452357,-500.0,0.00027397,7]
[334535802,1723175452366,-500.0,0.00027397,7]
[334535804,1723175452376,-264.62568672,0.00027397,7]
[334535806,1723175452385,-500.0,0.00027397,7]
[334535808,1723175452395,-507.47206711,0.00027397,7]
[334535810,1723175452404,-500.0,0.00027397,7]
[334535812,1723175452413,-1282.11,0.00027397,7]
[334535814,1723175452423,-1458.62,0.00027397,7]
[334535816,1723175452433,-577.74,0.00027397,7]
[334535818,1723175452442,-1411.12,0.00027397,7]
[334535820,1723175452454,-500.0,0.00027397,7]
[334535822,1723175452464,-568.41,0.00027397,7]
[334535824,1723175452474,-584.254296,0.00027397,7]
[334535826,1723175452483,-503.79819152,0.00027397,7]
[334535828,1723175452493,-584.254296,0.00027397,7]
[334535830,1723175452503,-995.77,0.00027397,7]
[334535832,1723175452512,-584.254296,0.00027397,7]
[334535834,1723175452521,-720.53,0.00027397,7]
[334535836,1723175452531,-584.254295,0.00027397,7]
[334535838,1723175452540,-505.73412405,0.00027397,7]
[334535840,1723175452550,-500.0,0.00027397,7]
[334535842,1723175452559,-226.67049154,0.00027397,7]
[334535844,1723175452569,-7412.01,0.00027397,7]
[334535846,1723175452578,-5203.53,0.00027397,7]
[334535848,1723175452587,-500.0,0.00027397,7]
[334535850,1723175452597,-1885.6,0.00027397,7]
[334535852,1723175452606,-500.0,0.00027397,7]
[334535854,1723175452616,-567.55,0.00027397,7]
[334535856,1723175452626,-576.74,0.00027397,7]
[334535858,1723175452635,-475.399349,0.00027397,7]
[334535860,1723175452645,-475.399349,0.00027397,7]
[334535862,1723175452654,-178.762337,0.00027397,7]
[334535864,1723175452664,-178.762337,0.00027397,7]
[334535866,1723175452673,-501.86751424,0.00027397,7]
[334535868,1723175452684,-475.399349,0.00027397,7]
[334535870,1723175452693,-475.399354,0.00027397,7]
[334535872,1723175452703,-1572.92,0.00027397,7]
[334535874,1723175452713,-501.54018615,0.00027397,7]
[334535876,1723175452723,-178.762337,0.00027397,7]
[334535878,1723175452732,-178.762342,0.00027397,7]
[334535880,1723175452741,-1682.64,0.00027397,7]
[334535883,1723175452751,-500.0,0.00027397,7]
[334535885,1723175452761,-525.24,0.00027397,7]
[334535887,1723175452770,-500.0,0.00027397,7]
[334535889,1723175452780,-500.0,0.00027397,7]
[334535891,1723175452789,-274.644722,0.00027397,7]
[334535893,1723175452798,-500.0,0.00027397,7]
[334535895,1723175452807,-500.0,0.00027397,7]
[334535897,1723175452817,-504.20756199,0.00027397,7]
[334535899,1723175452826,-501.70044564,0.00027397,7]
[334535901,1723175452842,-520.06,0.00027397,7]
[334535903,1723175452851,-500.0,0.00027397,7]
[334535905,1723175452862,-504.75712673,0.00027397,7]
[334535907,1723175452871,-862.76,0.00027397,7]
[334535909,1723175452882,-1005.973191,0.00027397,7]
[334535911,1723175452891,-1005.973191,0.00027397,7]
[334535913,1723175452901,-501.61304234,0.00027397,7]
[334535915,1723175452910,-500.0,0.00027397,7]
[334535918,1723175452921,-1005.973191,0.00027397,7]
[334535920,1723175452931,-1005.973192,0.00027397,7]
[334535941,1723175453129,-500.0,0.00027397,7]
[334535943,1723175453140,-500.0,0.00027397,7]
[334535946,1723175453152,-726.32,0.00027397,7]
[334535948,1723175453163,-599.52646976,0.00027397,7]
[334535950,1723175453173,-151.0,0.00027397,2]
[334535952,1723175453183,-151.0,0.00027397,2]
[334535954,1723175453193,-500.0,0.00027397,7]
[334535956,1723175453204,-500.0,0.00027397,7]
[334535958,1723175453213,-503.560753,0.00027397,7]
[334535960,1723175453223,-504.9600289,0.00027397,7]
[334535962,1723175453232,-235.663679,0.00027397,2]
[334535964,1723175453246,-500.0,0.00027397,7]
[334535966,1723175453256,-500.0,0.00027397,7]
[334535968,1723175453266,-710.48,0.00027397,7]
[334535970,1723175453275,-500.0,0.00027397,7]
[334535972,1723175453285,-573.02,0.00027397,7]
[334535974,1723175453294,-500.0,0.00027397,7]
[334535976,1723175453303,-500.0,0.00027397,7]
[334535978,1723175453314,-501.38200263,0.00027397,7]
[334535980,1723175453324,-1681.4,0.00027397,7]
[334535982,1723175453334,-500.0,0.00027397,7]
[334535984,1723175453344,-501.38413416,0.00027397,7]
[334535986,1723175453354,-500.0,0.00027397,7]
[334535988,1723175453364,-1267.59,0.00027397,7]
[334535990,1723175453374,-500.0,0.00027397,7]
[334535992,1723175453384,-500.0,0.00027397,7]
[334535994,1723175453394,-500.0,0.00027397,7]
[334535996,1723175453404,-500.0,0.00027397,7]
[334535998,1723175453413,-681.0,0.00027397,7]
[334536000,1723175453423,-681.0,0.00027397,7]
[334536002,1723175453432,-500.0,0.00027397,7]
[334536004,1723175453442,-681.0,0.00027397,7]
[334536006,1723175453454,-681.0,0.00027397,7]
[334536008,1723175453465,-681.0,0.00027397,7]
[334536010,1723175453474,-681.0,0.00027397,7]
[334536012,1723175453483,-681.0,0.00027397,7]
[334536014,1723175453493,-681.0,0.00027397,7]
[334536016,1723175453502,-681.0,0.00027397,7]
[334536018,1723175453511,-681.0,0.00027397,7]
[334536020,1723175453521,-681.0,0.00027397,7]
[334536022,1723175453530,-500.0,0.00027397,7]
[334536024,1723175453540,-681.0,0.00027397,7]
[334536026,1723175453550,-681.0,0.00027397,7]
[334536028,1723175453559,-868.37,0.00027397,7]
[334536030,1723175453569,-681.0,0.00027397,7]
[334536032,1723175453578,-681.0,0.00027397,7]
[334536034,1723175453587,-681.0,0.00027397,7]
[334536036,1723175453596,-681.0,0.00027397,7]
[334536038,1723175453606,-681.0,0.00027397,7]
[334536040,1723175453615,-681.0,0.00027397,7]
[334536042,1723175453624,-681.0,0.00027397,7]
[334536044,1723175453633,-681.0,0.00027397,7]
[334536046,1723175453643,-681.0,0.00027397,7]
[334536048,1723175453652,-681.0,0.00027397,7]
[334536050,1723175453661,-681.13305689,0.00027397,7]
[334536052,1723175453670,-502.74730644,0.00027397,7]
[334536054,1723175453680,-519.42987034,0.00027397,7]
[334536056,1723175453689,-405.422742,0.00027397,7]
[334536058,1723175453699,-405.422742,0.00027397,7]
[334536060,1723175453709,-500.0,0.00027397,7]
[334536062,1723175453719,-507.43,0.00027397,7]
[334536064,1723175453729,-405.422742,0.00027397,7]
[334536066,1723175453738,-500.0,0.00027397,7]
[334536068,1723175453747,-866.78,0.00027397,7]
[334536070,1723175453757,-405.422742,0.00027397,7]
[334536072,1723175453767,-500.0,0.00027397,7]
[334536074,1723175453776,-822.38,0.00027397,7]
[334536076,1723175453786,-759.86,0.00027397,7]
[334536078,1723175453795,-11189.93,0.00027397,7]
[334536080,1723175453804,-669.69,0.00027397,7]
[334536082,1723175453814,-1417.882806,0.00027397,7]
[334536084,1723175453823,-1417.882806,0.00027397,7]
[334536086,1723175453832,-1294.91,0.00027397,7]
[334536088,1723175453847,-1996.68,0.00027397,7]
[334536090,1723175453856,-1417.882806,0.00027397,7]
[334536092,1723175453865,-1417.882806,0.00027397,7]
[334536094,1723175453875,-500.0,0.00027397,7]
[334536096,1723175453886,-500.0,0.00027397,7]
[334536098,1723175453895,-500.0,0.00027397,7]
[334536100,1723175453904,-595.72,0.00027397,7]
[334536102,1723175453915,-500.0,0.00027397,7]
[334536104,1723175453925,-500.0,0.00027397,7]
[334536106,1723175453934,-3938.68,0.00027397,7]
[334536108,1723175453944,-500.0,0.00027397,7]
[334536110,1723175453956,-1444.49,0.00027397,7]
[334536112,1723175453966,-581.17,0.00027397,7]
[334536114,1723175453975,-500.0,0.00027397,7]
[334536116,1723175453985,-250.54324,0.00027397,7]
[334536118,1723175453994,-504.40048075,0.00027397,7]
[334536120,1723175454004,-500.0,0.00027397,7]
[334536122,1723175454013,-500.0,0.00027397,7]
[334536124,1723175454022,-503.52602108,0.00027397,7]
[334536126,1723175454031,-500.0,0.00027397,7]
[334536128,1723175454041,-1881.07,0.00027397,7]
[334536130,1723175454050,-640.612167,0.00027397,7]
[334536131,1723175454059,-640.612167,0.00027397,7]
[334536133,1723175454069,-500.0,0.00027397,7]
[334536135,1723175454079,-640.612167,0.00027397,7]
[334536137,1723175454088,-568.65,0.00027397,7]
[334536139,1723175454098,-640.612167,0.00027397,7]
[334536141,1723175454107,-4584.87,0.00027397,7]
[334536143,1723175454116,-889.23,0.00027397,7]
[334536145,1723175454126,-501.68452489,0.00027397,7]
[334536147,1723175454135,-500.0,0.00027397,7]
[334536150,1723175454146,-1212.01,0.00027397,7]
[334536152,1723175454166,-500.0,0.00027397,7]
[334536155,1723175454177,-500.0,0.00027397,7]
[334536157,1723175454189,-501.80382809,0.00027397,7]
[334536159,1723175454200,-845.975809,0.00027397,7]
[334536161,1723175454210,-845.975809,0.00027397,7]
[334536163,1723175454221,-847.63,0.00027397,7]
[334536165,1723175454230,-506.17116525,0.00027397,7]
[334536167,1723175454240,-503.2086495,0.00027397,7]
[334536169,1723175454251,-732.82,0.00027397,7]
[334536171,1723175454261,-845.975809,0.00027397,7]
[334536173,1723175454271,-845.975814,0.00027397,7]
[334536175,1723175454281,-500.0,0.00027397,7]
[334536177,1723175454290,-500.0,0.00027397,7]
[334536179,1723175454300,-500.0,0.00027397,7]
[334536181,1723175454310,-520.59622381,0.00027397,7]
[334536183,1723175454319,-500.0,0.00027397,7]
[334536185,1723175454330,-1231.59,0.00027397,7]
[334536187,1723175454340,-500.0,0.00027397,7]
[334536189,1723175454349,-505.7988615,0.00027397,7]
[334536191,1723175454360,-500.0,0.00027397,7]
[334536193,1723175454371,-1208.766106,0.00027397,7]
[334536195,1723175454381,-1208.766106,0.00027397,7]
[334536197,1723175454391,-508.81178432,0.00027397,7]
[334536199,1723175454401,-1208.766106,0.00027397,7]
[334536201,1723175454411,-1208.766102,0.00027397,7]
[334536203,1723175454421,-662.47,0.00027397,7]
[334536205,1723175454431,-500.0,0.00027397,2]
[334536207,1723175454441,-729.22,0.00027397,7]
[334536209,1723175454452,-501.99673739,0.00027397,7]
[334536211,1723175454462,-504.05385096,0.00027397,7]
[334536213,1723175454473,-500.0,0.00027397,7]
[334536215,1723175454483,-502.39662202,0.00027397,7]
[334536217,1723175454493,-982.28,0.00027397,7]
[334536219,1723175454503,-639.18,0.00027397,7]
[334536221,1723175454512,-582.74907826,0.00027397,7]
[334536223,1723175454522,-500.0,0.00027397,7]
[334536225,1723175454532,-504.52041775,0.00027397,7]
[334536227,1723175454542,-596.25241035,0.00027397,7]
[334536229,1723175454552,-506.72512356,0.00027397,7]
[334536231,1723175454562,-502.97312567,0.00027397,7]
[334536234,1723175454572,-2039.32,0.00027397,7]
[334536236,1723175454582,-1745.78,0.00027397,7]
[334536238,1723175454593,-500.0,0.00027397,7]
[334536240,1723175454603,-500.0,0.00027397,7]
[334536242,1723175454613,-500.0,0.00027397,7]
[334536244,1723175454630,-500.0,0.00027397,7]
[334536247,1723175454646,-501.37478597,0.00027397,7]
[334536249,1723175454662,-583.401317,0.00027397,7]
[334536252,1723175454678,-583.401317,0.00027397,7]
[334536254,1723175454691,-202.135724,0.00027397,7]
[334536257,1723175454707,-202.135724,0.00027397,7]
[334536259,1723175454722,-583.401317,0.00027397,7]
[334536262,1723175454736,-583.401308,0.00027397,7]
[334536264,1723175454750,-989.93,0.00027397,7]
[334536266,1723175454763,-500.0,0.00027397,7]
[334536269,1723175454777,-202.135724,0.00027397,7]
[334536271,1723175454792,-202.135725,0.00027397,7]
[334536273,1723175454806,-1311.87,0.00027397,7]
[334536276,1723175454820,-1311.87,0.00027397,7]
[334536278,1723175454835,-1311.87,0.00027397,7]
[334536280,1723175454851,-1311.87,0.00027397,7]
[334536283,1723175454865,-1311.87,0.00027397,7]
[334536285,1723175454881,-1311.87,0.00027397,7]
[334536288,1723175454895,-1311.87,0.00027397,7]
[334536290,1723175454908,-1311.87,0.00027397,7]
[334536292,1723175454922,-500.0,0.00027397,7]
[334536295,1723175454934,-1311.87,0.00027397,7]
[334536297,1723175454947,-1311.87,0.00027397,7]
[334536299,1723175454960,-1311.87,0.00027397,7]
[334536301,1723175454973,-1311.87,0.00027397,7]
[334536304,1723175454990,-1311.87,0.00027397,7]
[334536306,1723175455003,-315.669657,0.00027397,7]
[334536309,1723175455016,-315.669657,0.00027397,7]
[334536311,1723175455031,-315.669657,0.00027397,7]
[334536314,1723175455046,-315.669657,0.00027397,7]
[334536316,1723175455060,-315.669657,0.00027397,7]
[334536318,1723175455072,-315.669657,0.00027397,7]
[334536320,1723175455083,-315.669657,0.00027397,7]
[334536322,1723175455095,-315.669657,0.00027397,7]
[334536324,1723175455106,-315.669657,0.00027397,7]
[334536327,1723175455118,-315.669657,0.00027397,7]
[334536329,1723175455131,-315.669657,0.00027397,7]
[334536331,1723175455145,-315.669657,0.00027397,7]
[334536332,1723175455156,-315.669657,0.00027397,7]
[334536333,1723175455167,-315.669657,0.00027397,7]
[334536334,1723175455181,-160.575813,0.00027499,2]
[334536335,1723175455193,-220.780168,0.00027499,2]
[334536336,1723175455213,-150.0,0.00027534,2]
[334536337,1723175455224,-3200.0,0.00027534,2]
[334536338,1723175455235,-151.0,0.00027534,7]
[334536339,1723175455247,-620.00013378,0.00027568,2]
[334536340,1723175455261,-2258.0,0.00027649,2]
[334536341,1723175455274,-501.31262882,0.00027671,7]
[334536342,1723175455287,-506.29993324,0.00027671,7]
[334536343,1723175455301,-502.67089019,0.00027671,7]
[334536346,1723175455316,-501.6682948,0.00027671,7]
[334536348,1723175455329,-502.22990217,0.00027671,7]
[334536350,1723175455342,-524.95767074,0.00027671,7]
[334536353,1723175455356,-500.0,0.00027671,7]
[334536355,1723175455369,-507.53478463,0.00027671,7]
[334536358,1723175455382,-500.0,0.00027671,7]
[334536360,1723175455395,-500.0,0.00027671,7]
[334536362,1723175455409,-738.31,0.00027671,7]
[334536365,1723175455421,-500.0,0.00027671,7]
[334536367,1723175455433,-503.30211264,0.00027671,7]
[334536369,1723175455448,-500.0,0.00027671,7]
[334536371,1723175455459,-535.6729427,0.00027671,7]
[334536374,1723175455471,-500.0,0.00027671,7]
[334536376,1723175455483,-502.3001389,0.00027671,7]
[334536378,1723175455495,-507.27458391,0.00027671,7]
[334536380,1723175455507,-446.15204924,0.00027671,7]
[334536383,1723175455519,-504.62257308,0.00027671,7]
[334536385,1723175455532,-505.14143218,0.00027671,7]
[334536387,1723175455544,-500.0,0.00027671,7]
[334536390,1723175455557,-500.0,0.00027671,7]
[334536392,1723175455570,-502.77546486,0.00027671,7]
[334536394,1723175455581,-500.0,0.00027671,7]
[334536396,1723175455592,-503.45234883,0.00027671,7]
[334536398,1723175455603,-500.0,0.00027671,7]
[334536400,1723175455615,-502.4249977,0.00027671,7]
[334536403,1723175455626,-503.05009387,0.00027671,7]
[334536405,1723175455638,-504.02423352,0.00027671,7]
[334536407,1723175455649,-228.8096961,0.00027671,7]
[334536409,1723175455660,-578.47989527,0.00027671,7]
[334536412,1723175455671,-500.0,0.00027671,7]
[334536414,1723175455683,-502.29824827,0.00027671,7]